[Event "UKR-ch Women 2020"]
[Site "Kherson"]
[Date "2020.12.12"]
[Round "7.10"]
[White "Grigorchuk, Katerina"]
[Black "Mashchenko, Tamila"]
[Result "1-0"]
[ECO "B70"]
[WhiteElo "1767"]
[BlackElo "1768"]
[Annotator "NA"]
[PlyCount "111"]
[EventDate "2020.12.06"]
[EventType "swiss"]
[EventCountry "UKR"]
[SourceTitle "playchess.com"]
[Source "ChessBase"]
[SourceQuality "1"]
[TimeControl "40/5400+30:1800+30"]

1. e4 {[%emt 0:00:00]} c5 {[%emt 0:00:00]} 2. Nf3 {[%emt 0:00:00]} d6 {[%emt 0:00:00]} 3. d4 {[%emt 0:00:00]} cxd4 {[%emt 0:00:00]} 4. Nxd4 {[%emt 0:00:00]} Nf6 {[%emt 0:00:00]} 5. Nc3 {[%emt 0:00:00]} g6 {[%emt 0:00:01]} 6. g3 {[%emt 0:00:00]} Bg7 {[%emt 0:00:15]} 7. Bg2 {[%emt 0:00:03]} O-O {[%emt 0:00:21]} 8. O-O {[%emt 0:00:04]} Nc6 {[%emt 0:00:38]} 9. Nde2 {[%emt 0:00:06]} Rb8 {[%emt 0:08:15]} 10. a4 {[%emt 0:00:34]} a6 {[%emt 0:05:07]} 11. Nd5 {[%emt 0:00:38]} b5 {[%emt 0:10:27]} 12. axb5 {[%emt 0:01:22]} axb5 {[%emt 0:00:25]} 13. Bg5 {[%emt 0:00:57]} Nd7 {[%emt 0:27:04]} 14. Ra2 {[%emt 0:13:14]} h6 {[%emt 0:03:11]} 15. Bf4 {[%emt 0:06:43]} Nde5 {[%emt 0:04:02]} 16. Bxe5 Nxe5 {[%emt 0:03:19]} 17. Nd4 {[%emt 0:10:30]} e6 {[%emt 0:05:28]} 18. Nb4 {[%emt 0:01:19]} Qb6 {[%emt 0:01:41]} 19. c3 {[%emt 0:06:37]} Bb7 {[%emt 0:02:16]} 20. Kh1 {[%emt 0:10:02]} Ra8 {[%emt 0:04:14]} 21. Rxa8 Rxa8 {[%emt 0:00:17]} 22. Qe2 {[%emt 0:03:49]} Nc4 {[%emt 0:05:35]} 23. b3 {[%emt 0:04:49]} Na5 {[%emt 0:01:30]} 24. Qd3 {[%emt 0:04:00]} Rc8 {[%emt 0:01:50]} 25. Rb1 {[%emt 0:12:58]} Bxd4 {[%emt 0:12:19]} 26. cxd4 {[%emt 0:00:30]} Nc6 {[%emt 0:00:55]} 27. Nc2 {[%emt 0:00:54]} Na5 {[%emt 0:01:28]} 28. Ne3 {[%emt 0:02:22]} b4 {[%emt 0:01:48]} 29. Ng4 {[%emt 0:02:29]} Kg7 {[%emt 0:00:28]} 30. Qd2 {[%emt 0:00:32]} g5 {[%emt 0:00:22]} 31. h4 {[%emt 0:02:08]} f6 {[%emt 0:00:01]} 32. f4 {[%emt 0:02:12]} h5 {[%emt 0:01:47]} 33. fxg5 {[%emt 0:01:40]} f5 {[%emt 0:00:42]} 34. Nf6 {[%emt 0:01:24]} Rh8 {[%emt 0:00:26]} 35. exf5 {[%emt 0:03:32]} Bxg2+ {[%emt 0:00:23]} 36. Kxg2 {[%emt 0:00:18]} exf5 {[%emt 0:00:14]} 37. Qe2 {[%emt 0:00:44]} Qxd4 {[%emt 0:00:59]} 38. Rd1 {[%emt 0:01:32]} Qe5 {[%emt 0:00:31]} 39. Nxh5+ {[%emt 0:02:29]} Kf7 {[%emt 0:00:14]} 40. Qf3 {[%emt 0:00:00]} Re8 {[%emt 0:00:00]} 41. Rd5 {[%emt 0:06:38]} Qe2+ {[%emt 0:07:54]} 42. Qxe2 {[%emt 0:00:19]} Rxe2+ {[%emt 0:00:02]} 43. Kf3 {[%emt 0:01:12]} Re5 {[%emt 0:00:22]} 44. Rxd6 {[%emt 0:00:26]} Ke7 {[%emt 0:01:11]} 45. Rb6 {[%emt 0:05:49]} Nxb3 {[%emt 0:00:54]} 46. Rxb4 {[%emt 0:01:03]} Nd2+ {[%emt 0:00:40]} 47. Kf4 {[%emt 0:00:30]} Rd5 {[%emt 0:00:40]} 48. g6 {[%emt 0:02:31]} Rd8 {[%emt 0:01:00]} 49. Rb7+ {[%emt 0:01:26]} Ke6 {[%emt 0:01:01]} 50. Kg5 {[%emt 0:06:09]} Ne4+ {[%emt 0:02:21]} 51. Kh6 {[%emt 0:00:25]} Rh8+ {[%emt 0:00:45]} 52. Rh7 {[%emt 0:00:07]} Rg8 {[%emt 0:00:30]} 53. g7 {[%emt 0:02:14]} Kf7 {[%emt 0:05:33]} 54. Rh8 {[%emt 0:01:13]} Nf6 {[%emt 0:01:28]} 55. Nxf6 {[%emt 0:01:45]} Rxg7 {[%emt 0:00:08]} 56. Rh7 {[%emt 0:00:15]} 1-0

[Event "UKR-ch Women 2020"]
[Site "Kherson"]
[Date "2020.12.13"]
[Round "8.1"]
[White "Petrova, Irina"]
[Black "Buksa, Nataliya"]
[Result "1/2-1/2"]
[ECO "B31"]
[WhiteElo "2077"]
[BlackElo "2410"]
[Annotator "NA"]
[PlyCount "82"]
[EventDate "2020.12.06"]
[EventType "swiss"]
[EventCountry "UKR"]
[SourceTitle "playchess.com"]
[Source "ChessBase"]
[SourceQuality "1"]
[TimeControl "40/5400+30:1800+30"]

1. e4 {[%emt 0:00:00]} c5 {[%emt 0:00:39]} 2. Nf3 {[%emt 0:00:00]} Nc6 {[%emt 0:00:14]} 3. Bb5 {[%emt 0:00:00]} g6 {[%emt 0:00:07]} 4. Bxc6 {[%emt 0:00:00]} bxc6 {[%emt 0:00:04]} 5. O-O {[%emt 0:00:00]} Bg7 {[%emt 0:00:04]} 6. Re1 {[%emt 0:00:03]} Nh6 {[%emt 0:00:13]} 7. c3 {[%emt 0:00:11]} O-O {[%emt 0:00:07]} 8. d4 {[%emt 0:00:05]} cxd4 {[%emt 0:00:31]} 9. cxd4 {[%emt 0:00:06]} d5 {[%emt 0:00:04]} 10. e5 {[%emt 0:00:06]} f6 {[%emt 0:00:05]} 11. exf6 {[%emt 0:00:06]} exf6 {[%emt 0:00:12]} 12. Nbd2 {[%emt 0:00:07]} Nf7 {[%emt 0:10:23]} 13. Nb3 {[%emt 0:00:25]} Bf5 {[%emt 0:02:43]} 14. Bd2 {[%emt 0:01:16]} Re8 {[%emt 0:03:02]} 15. Bb4 {[%emt 0:05:06]} Qb6 {[%emt 0:05:44]} 16. Bc5 {[%emt 0:05:38]} Qc7 {[%emt 0:00:29]} 17. Qd2 {[%emt 0:08:11]} Be4 {[%emt 0:29:58]} 18. Qc3 {[%emt 0:08:42]} Bxf3 {[%emt 0:07:37]} 19. Qxf3 {[%emt 0:00:14]} Ng5 {[%emt 0:00:05]} 20. Qg3 {[%emt 0:25:46]} Qd7 {[%emt 0:00:05]} 21. f3 {[%emt 0:07:39]} Ne6 {[%emt 0:05:00]} 22. Qd6 {[%emt 0:03:16]} Qxd6 {[%emt 0:00:43]} 23. Bxd6 {[%emt 0:00:41]} Bh6 {[%emt 0:09:01]} 24. Kf1 {[%emt 0:06:23]} Kf7 {[%emt 0:00:52]} 25. Rad1 {[%emt 0:01:03]} Rad8 {[%emt 0:05:52]} 26. Bc5 {[%emt 0:03:02]} Nxc5 {[%emt 0:01:37]} 27. Nxc5 {[%emt 0:00:07]} Rb8 {[%emt 0:04:48]} 28. Nb3 {[%emt 0:00:22]} Rb4 {[%emt 0:03:00]} 29. Rxe8 {[%emt 0:03:13]} Kxe8 {[%emt 0:00:04]} 30. Re1+ {[%emt 0:01:24]} Kf7 {[%emt 0:00:26]} 31. Re2 {[%emt 0:00:52]} Rc4 {[%emt 0:00:10]} 32. g3 {[%emt 0:02:56]} Bf8 {[%emt 0:00:52]} 33. a3 {[%emt 0:04:23]} Bd6 {[%emt 0:00:11]} 34. Rd2 {[%emt 0:00:40]} Bc7 {[%emt 0:00:23]} 35. Ke2 {[%emt 0:02:33]} Bb6 {[%emt 0:00:35]} 36. Rd3 {[%emt 0:03:00]} Rc2+ {[%emt 0:03:42]} 37. Rd2 {[%emt 0:00:05]} Rc4 {[%emt 0:00:03]} 38. Rd3 {[%emt 0:00:06]} Ke6 {[%emt 0:05:50]} 39. Rc3 {[%emt 0:02:16]} Rxc3 {[%emt 0:00:55]} 40. bxc3 {[%emt 0:00:00]} Kd6 {[%emt 0:00:00]} 41. a4 {[%emt 0:02:48]} Bd8 {[%emt 0:01:49]} 1/2-1/2

[Event "UKR-ch Women 2020"]
[Site "Kherson"]
[Date "2020.12.13"]
[Round "8.2"]
[White "Babiy, Olga"]
[Black "Rakhmangulova, Anastasiya"]
[Result "1-0"]
[ECO "C10"]
[WhiteElo "2271"]
[BlackElo "2132"]
[Annotator "NA"]
[PlyCount "79"]
[EventDate "2020.12.06"]
[EventType "swiss"]
[EventCountry "UKR"]
[SourceTitle "playchess.com"]
[Source "ChessBase"]
[SourceQuality "1"]
[TimeControl "40/5400+30:1800+30"]

1. e4 {[%emt 0:00:00]} e6 {[%emt 0:00:00]} 2. d4 {[%emt 0:00:00]} d5 {[%emt 0:00:00]} 3. Nc3 {[%emt 0:00:07]} Nc6 {[%emt 0:00:00]} 4. Nf3 {[%emt 0:00:34]} Nf6 {[%emt 0:00:00]} 5. Bd3 {[%emt 0:00:38]} Nb4 {[%emt 0:04:18]} 6. e5 {[%emt 0:06:06]} Nxd3+ {[%emt 0:00:26]} 7. Qxd3 {[%emt 0:00:14]} Nd7 {[%emt 0:01:47]} 8. Bg5 {[%emt 0:00:14]} Be7 {[%emt 0:02:30]} 9. Bxe7 {[%emt 0:01:41]} Qxe7 {[%emt 0:00:22]} 10. O-O {[%emt 0:00:07]} a6 {[%emt 0:02:57]} 11. Ne2 {[%emt 0:01:50]} Nf8 {[%emt 0:14:53]} 12. Nd2 {[%emt 0:06:51]} Bd7 {[%emt 0:09:25]} 13. a4 {[%emt 0:02:45]} Ng6 {[%emt 0:10:23]} 14. f4 {[%emt 0:07:56]} f6 {[%emt 0:02:14]} 15. exf6 {[%emt 0:08:12]} gxf6 {[%emt 0:05:32]} 16. f5 {[%emt 0:06:24]} exf5 {[%emt 0:07:30]} 17. Ng3 {[%emt 0:05:27]} O-O-O {[%emt 0:02:45]} 18. Nxf5 {[%emt 0:00:13]} Qe8 {[%emt 0:05:05]} 19. Rae1 {[%emt 0:13:34]} Qf7 {[%emt 0:01:08]} 20. b3 {[%emt 0:00:49]} Rhe8 {[%emt 0:02:01]} 21. Qf3 {[%emt 0:01:53]} Rxe1 {[%emt 0:03:10]} 22. Rxe1 {[%emt 0:00:01]} Re8 {[%emt 0:00:45]} 23. Rxe8+ {[%emt 0:01:04]} Qxe8 {[%emt 0:00:15]} 24. Ne3 {[%emt 0:00:33]} Qe6 {[%emt 0:08:56]} 25. Ndf1 {[%emt 0:01:50]} Ne7 {[%emt 0:01:04]} 26. Qh5 {[%emt 0:01:42]} Nf5 {[%emt 0:04:19]} 27. Kf2 {[%emt 0:09:32]} Qe4 {[%emt 0:04:51]} 28. c3 {[%emt 0:00:37]} Nxe3 {[%emt 0:01:35]} 29. Nxe3 {[%emt 0:00:05]} Kb8 {[%emt 0:02:19]} 30. Qxd5 {[%emt 0:02:05]} Qh4+ {[%emt 0:00:06]} 31. Ke2 {[%emt 0:03:05]} Bc8 {[%emt 0:00:34]} 32. h3 {[%emt 0:00:37]} f5 {[%emt 0:01:03]} 33. Qe5 {[%emt 0:01:36]} Qh5+ {[%emt 0:00:55]} 34. Kf2 {[%emt 0:01:40]} Qf7 {[%emt 0:01:11]} 35. c4 {[%emt 0:01:10]} f4 {[%emt 0:00:27]} 36. Nd5 {[%emt 0:00:14]} f3 {[%emt 0:00:11]} 37. g4 {[%emt 0:00:40]} h6 {[%emt 0:01:28]} 38. Qe7 {[%emt 0:01:15]} Qg8 {[%emt 0:01:30]} 39. Qxc7+ {[%emt 0:00:13]} Ka7 {[%emt 0:00:03]} 40. Ne7 {[%emt 0:00:00]} 1-0

[Event "UKR-ch Women 2020"]
[Site "Kherson"]
[Date "2020.12.13"]
[Round "8.6"]
[White "Martynkova, Olena"]
[Black "Dubovyk, Anastasiia"]
[Result "0-1"]
[ECO "E68"]
[WhiteElo "2222"]
[BlackElo "1971"]
[Annotator "NA"]
[PlyCount "64"]
[EventDate "2020.12.06"]
[EventType "swiss"]
[EventCountry "UKR"]
[SourceTitle "playchess.com"]
[Source "ChessBase"]
[SourceQuality "1"]
[TimeControl "40/5400+30:1800+30"]

1. d4 {[%emt 0:00:00]} Nf6 {[%emt 0:00:03]} 2. c4 {[%emt 0:00:00]} d6 {[%emt 0:00:24]} 3. g3 {[%emt 0:00:42]} g6 {[%emt 0:00:33]} 4. Bg2 {[%emt 0:00:21]} Bg7 {[%emt 0:00:14]} 5. Nf3 {[%emt 0:00:23]} O-O {[%emt 0:00:29]} 6. O-O {[%emt 0:00:17]} Nbd7 {[%emt 0:00:22]} 7. Nc3 {[%emt 0:00:24]} e5 {[%emt 0:00:15]} 8. e4 {[%emt 0:00:28]} exd4 {[%emt 0:00:20]} 9. Nxd4 {[%emt 0:00:11]} Re8 {[%emt 0:00:20]} 10. h3 {[%emt 0:00:36]} a6 {[%emt 0:00:26]} 11. Be3 {[%emt 0:02:03]} Rb8 {[%emt 0:00:20]} 12. b3 {[%emt 0:01:43]} Ne5 {[%emt 0:00:45]} 13. Re1 {[%emt 0:03:47]} Bd7 {[%emt 0:10:08]} 14. a4 {[%emt 0:14:11]} Qc8 {[%emt 0:05:51]} 15. f4 {[%emt 0:08:08]} Nc6 {[%emt 0:05:45]} 16. Kh2 {[%emt 0:02:05]} h5 {[%emt 0:17:12]} 17. Nxc6 {[%emt 0:26:13]} bxc6 {[%emt 0:03:15]} 18. Qc2 {[%emt 0:01:26]} h4 {[%emt 0:04:35]} 19. g4 {[%emt 0:04:17]} Bxg4 {[%emt 0:22:14]} 20. hxg4 {[%emt 0:03:04]} Qxg4 {[%emt 0:01:42]} 21. Ne2 {[%emt 0:08:41]} h3 {[%emt 0:04:14]} 22. Bxh3 {[%emt 0:03:01]} Qh4 {[%emt 0:02:35]} 23. Nc3 {[%emt 0:03:10]} Nh5 {[%emt 0:05:36]} 24. Ne2 {[%emt 0:05:19]} Bxa1 {[%emt 0:02:41]} 25. Rxa1 {[%emt 0:00:08]} Nf6 {[%emt 0:03:21]} 26. Bd4 {[%emt 0:03:18]} Rxe4 {[%emt 0:04:56]} 27. Bg1 {[%emt 0:02:18]} Rbe8 {[%emt 0:03:42]} 28. Ng3 {[%emt 0:01:09]} Rxf4 {[%emt 0:01:03]} 29. Rf1 {[%emt 0:01:23]} Ng4+ {[%emt 0:00:26]} 30. Kg2 {[%emt 0:00:02]} Ne3+ {[%emt 0:00:21]} 31. Bxe3 {[%emt 0:00:07]} Rxe3 {[%emt 0:00:09]} 32. Rxf4 {[%emt 0:00:12]} Rxg3+ {[%emt 0:00:29]} 0-1

[Event "UKR-ch Women 2020"]
[Site "Kherson"]
[Date "2020.12.13"]
[Round "8.7"]
[White "Yeshchenko, Uliana"]
[Black "Grigorchuk, Katerina"]
[Result "0-1"]
[ECO "B33"]
[WhiteElo "1872"]
[BlackElo "1767"]
[Annotator "NA"]
[PlyCount "72"]
[EventDate "2020.12.06"]
[EventType "swiss"]
[EventCountry "UKR"]
[SourceTitle "playchess.com"]
[Source "ChessBase"]
[SourceQuality "1"]
[TimeControl "40/5400+30:1800+30"]

1. e4 {[%emt 0:00:00]} c5 {[%emt 0:00:00]} 2. Nf3 {[%emt 0:00:00]} Nc6 {[%emt 0:00:00]} 3. d4 {[%emt 0:00:00]} cxd4 {[%emt 0:00:00]} 4. Nxd4 {[%emt 0:00:00]} Nf6 {[%emt 0:00:17]} 5. Nc3 {[%emt 0:00:00]} e5 {[%emt 0:00:21]} 6. Ndb5 {[%emt 0:00:00]} d6 {[%emt 0:00:14]} 7. Bg5 {[%emt 0:00:00]} a6 {[%emt 0:00:08]} 8. Na3 {[%emt 0:00:03]} b5 {[%emt 0:00:05]} 9. Bxf6 {[%emt 0:00:04]} gxf6 {[%emt 0:01:04]} 10. Nd5 {[%emt 0:00:03]} f5 {[%emt 0:05:57]} 11. Bxb5 {[%emt 0:00:15]} axb5 {[%emt 0:02:36]} 12. Nxb5 {[%emt 0:00:04]} Rb8 {[%emt 0:10:49]} 13. Nbc7+ {[%emt 0:00:34]} Kd7 {[%emt 0:00:21]} 14. Qh5 {[%emt 0:01:21]} Nd4 {[%emt 0:01:22]} 15. Qxf7+ {[%emt 0:03:16]} Be7 {[%emt 0:02:55]} 16. O-O {[%emt 0:08:35]} Qf8 {[%emt 0:09:26]} 17. Qh5 {[%emt 0:02:10]} Bd8 {[%emt 0:16:57]} 18. c3 {[%emt 0:15:17]} Nc6 {[%emt 0:00:43]} 19. exf5 {[%emt 0:05:45]} Bxc7 {[%emt 0:01:02]} 20. f6 {[%emt 0:01:32]} Nd8 {[%emt 0:09:12]} 21. Qg4+ {[%emt 0:07:16]} Ne6 {[%emt 0:00:18]} 22. Qa4+ {[%emt 0:05:36]} Kd8 {[%emt 0:00:07]} 23. Rad1 {[%emt 0:05:15]} Bb7 {[%emt 0:07:20]} 24. Nxc7 {[%emt 0:03:10]} Nxc7 {[%emt 0:02:37]} 25. c4 {[%emt 0:05:25]} Qxf6 {[%emt 0:03:42]} 26. Qb4 {[%emt 0:01:36]} Kd7 {[%emt 0:02:41]} 27. c5 {[%emt 0:02:36]} d5 {[%emt 0:03:24]} 28. Qa4+ {[%emt 0:01:42]} Bc6 {[%emt 0:00:26]} 29. Qg4+ {[%emt 0:00:12]} Ne6 {[%emt 0:00:47]} 30. Rd3 {[%emt 0:04:23]} Rbg8 {[%emt 0:02:42]} 31. Qh3 {[%emt 0:00:33]} Kc7 {[%emt 0:03:24]} 32. Ra3 {[%emt 0:04:48]} d4 {[%emt 0:01:08]} 33. Ra7+ {[%emt 0:01:50]} Kd8 {[%emt 0:03:43]} 34. Rc1 {[%emt 0:06:21]} Rxg2+ {[%emt 0:03:41]} 35. Qxg2 {[%emt 0:00:35]} Bxg2 {[%emt 0:00:08]} 36. c6 {[%emt 0:00:40]} Nc7 {[%emt 0:00:58]} 0-1

[Event "UKR-ch Women 2020"]
[Site "Kherson"]
[Date "2020.12.13"]
[Round "8.8"]
[White "Grineva, Marianna"]
[Black "Zinkevich, Julia"]
[Result "1-0"]
[ECO "C10"]
[WhiteElo "2001"]
[BlackElo "2178"]
[Annotator "NA"]
[PlyCount "87"]
[EventDate "2020.12.06"]
[EventType "swiss"]
[EventCountry "UKR"]
[SourceTitle "playchess.com"]
[Source "ChessBase"]
[SourceQuality "1"]
[TimeControl "40/5400+30:1800+30"]

1. e4 {[%emt 0:00:00]} e6 {[%emt 0:00:02]} 2. d4 {[%emt 0:00:00]} d5 {[%emt 0:00:04]} 3. Nd2 {[%emt 0:00:00]} dxe4 {[%emt 0:00:05]} 4. Nxe4 {[%emt 0:00:00]} Bd7 {[%emt 0:00:07]} 5. Nf3 {[%emt 0:01:57]} Bc6 {[%emt 0:01:31]} 6. Ng3 {[%emt 0:03:02]} Nd7 {[%emt 0:05:36]} 7. Bd3 {[%emt 0:03:49]} Ngf6 {[%emt 0:01:13]} 8. O-O {[%emt 0:02:01]} Be7 {[%emt 0:00:41]} 9. Re1 {[%emt 0:08:10]} O-O {[%emt 0:03:22]} 10. Qe2 {[%emt 0:10:41]} Bxf3 {[%emt 0:02:20]} 11. Qxf3 {[%emt 0:00:21]} c6 {[%emt 0:03:36]} 12. c3 {[%emt 0:06:28]} Re8 {[%emt 0:10:15]} 13. Bc2 {[%emt 0:04:58]} Qa5 {[%emt 0:06:33]} 14. Bb3 {[%emt 0:17:35]} Rad8 {[%emt 0:13:29]} 15. Bf4 {[%emt 0:06:22]} Nf8 {[%emt 0:08:39]} 16. Ne4 {[%emt 0:06:30]} Qf5 {[%emt 0:15:49]} 17. Nxf6+ {[%emt 0:03:47]} Qxf6 {[%emt 0:01:23]} 18. Qg3 {[%emt 0:03:22]} Qg6 {[%emt 0:03:55]} 19. Qe3 {[%emt 0:00:52]} Bd6 {[%emt 0:04:03]} 20. Bxd6 {[%emt 0:03:31]} Rxd6 {[%emt 0:00:04]} 21. Qe5 {[%emt 0:00:12]} Red8 {[%emt 0:02:47]} 22. Re3 {[%emt 0:01:37]} Qf6 {[%emt 0:00:44]} 23. Qa5 {[%emt 0:00:44]} a6 {[%emt 0:00:56]} 24. Rf3 {[%emt 0:02:03]} Qe7 {[%emt 0:01:26]} 25. Re1 {[%emt 0:01:15]} Ng6 {[%emt 0:04:35]} 26. g3 {[%emt 0:01:52]} Nf8 {[%emt 0:01:34]} 27. Re4 {[%emt 0:05:55]} Rb8 {[%emt 0:05:47]} 28. Ref4 {[%emt 0:01:05]} f6 {[%emt 0:01:12]} 29. Re4 {[%emt 0:00:57]} Re8 {[%emt 0:01:34]} 30. Rfe3 {[%emt 0:00:23]} Kh8 {[%emt 0:00:41]} 31. Qh5 {[%emt 0:01:32]} g6 {[%emt 0:00:22]} 32. Qe2 {[%emt 0:01:07]} Qd7 {[%emt 0:00:29]} 33. h4 {[%emt 0:01:58]} Kg7 {[%emt 0:00:22]} 34. Kg2 {[%emt 0:00:49]} a5 {[%emt 0:00:27]} 35. h5 {[%emt 0:00:51]} b6 {[%emt 0:00:48]} 36. hxg6 {[%emt 0:00:48]} hxg6 {[%emt 0:00:38]} 37. Rh4 {[%emt 0:00:21]} f5 {[%emt 0:00:34]} 38. Rh1 {[%emt 0:01:05]} Kf6 {[%emt 0:00:22]} 39. Qf3 {[%emt 0:00:26]} g5 {[%emt 0:00:40]} 40. Rh6+ {[%emt 0:00:00]} Ng6 {[%emt 0:00:00]} 41. Qh5 {[%emt 0:01:40]} Rg8 {[%emt 0:04:51]} 42. f4 {[%emt 0:04:26]} g4 {[%emt 0:09:40]} 43. Qg5+ {[%emt 0:02:25]} Kf7 {[%emt 0:00:07]} 44. Qxf5+ {[%emt 0:00:23]} 1-0

[Event "UKR-ch Women 2020"]
[Site "Kherson"]
[Date "2020.12.13"]
[Round "8.10"]
[White "Gaponenko, Inna"]
[Black "Mashchenko, Tamila"]
[Result "1-0"]
[ECO "B53"]
[WhiteElo "2390"]
[BlackElo "1768"]
[Annotator "NA"]
[PlyCount "71"]
[EventDate "2020.12.06"]
[EventType "swiss"]
[EventCountry "UKR"]
[SourceTitle "playchess.com"]
[Source "ChessBase"]
[SourceQuality "1"]
[TimeControl "40/5400+30:1800+30"]

1. e4 {[%emt 0:00:00]} c5 {[%emt 0:00:00]} 2. Nf3 {[%emt 0:00:00]} d6 {[%emt 0:00:00]} 3. d4 {[%emt 0:00:00]} cxd4 {[%emt 0:00:00]} 4. Qxd4 {[%emt 0:00:00]} Nc6 {[%emt 0:00:00]} 5. Bb5 {[%emt 0:00:00]} Bd7 {[%emt 0:00:07]} 6. Bxc6 {[%emt 0:00:00]} Bxc6 {[%emt 0:00:01]} 7. Nc3 {[%emt 0:00:07]} Nf6 {[%emt 0:00:10]} 8. Bg5 {[%emt 0:00:06]} e6 {[%emt 0:00:25]} 9. O-O-O {[%emt 0:00:11]} Be7 {[%emt 0:00:33]} 10. Rhe1 {[%emt 0:00:08]} O-O {[%emt 0:00:38]} 11. Kb1 {[%emt 0:00:05]} Qa5 {[%emt 0:04:06]} 12. Qd2 {[%emt 0:00:30]} Qa6 {[%emt 0:31:09]} 13. Nd4 {[%emt 0:02:54]} Rfc8 {[%emt 0:05:54]} 14. f3 {[%emt 0:09:42]} b5 {[%emt 0:02:30]} 15. g4 {[%emt 0:10:23]} Rab8 {[%emt 0:13:23]} 16. Nce2 {[%emt 0:10:33]} b4 {[%emt 0:12:23]} 17. Ng3 {[%emt 0:06:24]} Qb7 {[%emt 0:06:09]} 18. Rg1 {[%emt 0:24:30]} a5 {[%emt 0:03:00]} 19. Nh5 {[%emt 0:23:03]} Ne8 {[%emt 0:00:31]} 20. Bxe7 {[%emt 0:01:17]} Qxe7 {[%emt 0:00:02]} 21. g5 {[%emt 0:00:31]} a4 {[%emt 0:05:48]} 22. Qf4 {[%emt 0:01:41]} g6 {[%emt 0:07:42]} 23. Nf6+ {[%emt 0:00:50]} Kg7 {[%emt 0:00:01]} 24. e5 {[%emt 0:05:07]} d5 {[%emt 0:06:10]} 25. Qh4 {[%emt 0:01:58]} h5 {[%emt 0:00:00]} 26. Nxh5+ {[%emt 0:00:23]} gxh5 {[%emt 0:00:15]} 27. Qxh5 {[%emt 0:00:02]} Kg8 {[%emt 0:01:11]} 28. Rg3 {[%emt 0:01:22]} Ng7 {[%emt 0:00:20]} 29. Qh6 {[%emt 0:00:05]} Qe8 {[%emt 0:01:15]} 30. Rh3 {[%emt 0:01:34]} Kf8 {[%emt 0:00:01]} 31. Qh8+ {[%emt 0:00:05]} Ke7 {[%emt 0:00:06]} 32. Qxg7 {[%emt 0:00:02]} b3 33. cxb3 {[%emt 0:00:27]} axb3 {[%emt 0:01:03]} 34. Qf6+ {[%emt 0:00:33]} Kd7 {[%emt 0:00:04]} 35. Rh7 {[%emt 0:00:12]} bxa2+ {[%emt 0:00:09]} 36. Ka1 {[%emt 0:00:04]} 1-0